[Event "*** SCC Grand Prix: Titled Tuesday Blitz"]
[Site "Chess.com"]
[Date "2020.07.14"]
[Round "10"]
[White "AlanZhang"]
[Black "GAusal"]
[Result "0-1"]
[WhiteElo "2190"]
[BlackElo "2076"]
[TimeControl "180+1"]
[EndTime "11:58:22 PDT"]
[Termination "GAusal won on time"]

1. e4 {[%clk 0:03:00.9]} 1... e5 {[%clk 0:02:58.1]} 2. Nf3 {[%clk 0:03:00.4]}
2... Nc6 {[%clk 0:02:57.3]} 3. Bb5 {[%clk 0:03:00.9]} 3... a6 {[%clk 0:02:55.7]}
4. Ba4 {[%clk 0:02:59.5]} 4... b5 {[%clk 0:02:56.3]} 5. Bb3 {[%clk 0:02:58]}
5... f5 {[%clk 0:02:52.3]} 6. d4 {[%clk 0:02:22.1]} 6... exd4 {[%clk 0:02:45.1]}
7. Nxd4 {[%clk 0:02:16.7]} 7... Nxd4 {[%clk 0:02:44.9]} 8. Qxd4 {[%clk
0:02:15.1]} 8... Bb7 {[%clk 0:02:41.8]} 9. Qe5+ {[%clk 0:02:00.5]} 9... Qe7
{[%clk 0:02:37]} 10. Qxe7+ {[%clk 0:01:32.1]} 10... Nxe7 {[%clk 0:02:31.9]} 11.
Bf4 {[%clk 0:01:26.3]} 11... c5 {[%clk 0:02:26.9]} 12. c3 {[%clk 0:01:20.9]}
12... Ng6 {[%clk 0:02:22.1]} 13. Be3 {[%clk 0:01:16.7]} 13... f4 {[%clk
0:02:16.9]} 14. Bd2 {[%clk 0:01:16.5]} 14... Bxe4 {[%clk 0:02:09.9]} 15. f3
{[%clk 0:01:13.9]} 15... Bd3 {[%clk 0:02:05.1]} 16. a4 {[%clk 0:01:10.5]} 16...
c4 {[%clk 0:01:59.3]} 17. Bd1 {[%clk 0:01:08.8]} 17... Bc5 {[%clk 0:01:49.7]}
18. Be2 {[%clk 0:01:00.5]} 18... O-O {[%clk 0:01:42.6]} 19. Bxd3 {[%clk
0:00:55.4]} 19... cxd3 {[%clk 0:01:38.4]} 20. Kd1 {[%clk 0:00:50.5]} 20... Nh4
{[%clk 0:01:31]} 21. b4 {[%clk 0:00:46.8]} 21... Be3 {[%clk 0:01:22.7]} 22. g3
{[%clk 0:00:36.9]} 22... Nxf3 {[%clk 0:01:16.9]} 23. gxf4 {[%clk 0:00:35.6]}
23... Bxd2 {[%clk 0:01:16.1]} 24. Nxd2 {[%clk 0:00:35]} 24... Nxd2 {[%clk
0:01:15.8]} 25. Kxd2 {[%clk 0:00:35.9]} 25... Rxf4 {[%clk 0:01:15.5]} 26. Kxd3
{[%clk 0:00:34.8]} 26... Rc8 {[%clk 0:01:11.7]} 27. axb5 {[%clk 0:00:30.7]}
27... axb5 {[%clk 0:01:10.7]} 28. Ra7 {[%clk 0:00:24.7]} 28... Rf3+ {[%clk
0:01:10.2]} 29. Ke4 {[%clk 0:00:20.5]} 29... Rfxc3 {[%clk 0:01:08.8]} 30. Rxd7
{[%clk 0:00:19.4]} 30... R3c4+ {[%clk 0:01:09]} 31. Kd5 {[%clk 0:00:12.7]} 31...
Rxb4 {[%clk 0:01:07.9]} 32. Rg1 {[%clk 0:00:12.2]} 32... g6 {[%clk 0:01:04.1]}
33. Rf1 {[%clk 0:00:11.1]} 33... Rf8 {[%clk 0:01:02.8]} 34. Re1 {[%clk
0:00:07.3]} 34... Rf7 {[%clk 0:00:53.8]} 35. Re8+ {[%clk 0:00:04]} 35... Kg7
{[%clk 0:00:53.5]} 36. Rdd8 {[%clk 0:00:03]} 36... Rb1 {[%clk 0:00:47.5]} 37.
Kc5 {[%clk 0:00:02.2]} 37... b4 {[%clk 0:00:46.7]} 38. Rb8 {[%clk 0:00:02.6]}
38... b3 {[%clk 0:00:46.5]} 39. Re3 {[%clk 0:00:02.8]} 39... b2 {[%clk
0:00:40.3]} 40. Re2 {[%clk 0:00:02.5]} 40... Rc1+ {[%clk 0:00:40.2]} 0-1

[Event "*** SCC Grand Prix: Titled Tuesday Blitz"]
[Site "Chess.com"]
[Date "2020.07.14"]
[Round "10"]
[White "Volodar_Murzin"]
[Black "rasmussvane"]
[Result "0-1"]
[WhiteElo "2720"]
[BlackElo "2895"]
[TimeControl "180+1"]
[EndTime "11:58:24 PDT"]
[Termination "rasmussvane won by resignation"]

1. e4 {[%clk 0:03:00.9]} 1... c6 {[%clk 0:03:00.3]} 2. d4 {[%clk 0:02:58.2]}
2... d5 {[%clk 0:03:01.2]} 3. f3 {[%clk 0:02:58.4]} 3... e6 {[%clk 0:03:01.2]}
4. Nc3 {[%clk 0:02:56.4]} 4... Bb4 {[%clk 0:03:00.9]} 5. a3 {[%clk 0:02:51.1]}
5... Bxc3+ {[%clk 0:02:56]} 6. bxc3 {[%clk 0:02:51.7]} 6... dxe4 {[%clk
0:02:56.9]} 7. Qe2 {[%clk 0:02:51.9]} 7... c5 {[%clk 0:02:52.4]} 8. Qe3 {[%clk
0:02:51.6]} 8... cxd4 {[%clk 0:02:46.8]} 9. cxd4 {[%clk 0:02:45.1]} 9... Nc6
{[%clk 0:02:47.2]} 10. Bb2 {[%clk 0:02:39.7]} 10... exf3 {[%clk 0:02:41.1]} 11.
Nxf3 {[%clk 0:02:35.1]} 11... Nf6 {[%clk 0:02:40.8]} 12. Bd3 {[%clk 0:02:29.6]}
12... Nd5 {[%clk 0:02:20.6]} 13. Qf2 {[%clk 0:02:22.1]} 13... Qa5+ {[%clk
0:02:16]} 14. Nd2 {[%clk 0:02:18.9]} 14... Nb6 {[%clk 0:01:26.1]} 15. O-O {[%clk
0:02:14]} 15... O-O {[%clk 0:01:19.8]} 16. Ne4 {[%clk 0:01:58.9]} 16... Na4
{[%clk 0:01:13]} 17. Bc1 {[%clk 0:00:45.5]} 17... f5 {[%clk 0:01:12.6]} 18. Ng5
{[%clk 0:00:30.6]} 18... Bd7 {[%clk 0:01:07.8]} 19. Bd2 {[%clk 0:00:25.4]} 19...
Qd5 {[%clk 0:01:06]} 20. Nf3 {[%clk 0:00:23.6]} 20... b5 {[%clk 0:01:05.4]} 21.
Rfe1 {[%clk 0:00:19.1]} 21... Nb2 {[%clk 0:00:55.8]} 22. Bf1 {[%clk 0:00:15.2]}
22... Nc4 {[%clk 0:00:55.9]} 23. Bf4 {[%clk 0:00:15.3]} 23... a6 {[%clk
0:00:42.5]} 24. c3 {[%clk 0:00:12.7]} 24... N6a5 {[%clk 0:00:35.4]} 25. Qg3
{[%clk 0:00:11]} 25... Rae8 {[%clk 0:00:28.4]} 26. Ne5 {[%clk 0:00:06.8]} 26...
Bc6 {[%clk 0:00:23.4]} 27. Nd3 {[%clk 0:00:04]} 27... Bb7 {[%clk 0:00:20.9]} 28.
Nc5 {[%clk 0:00:03.9]} 28... e5 {[%clk 0:00:20.1]} 29. Be3 {[%clk 0:00:01.6]}
29... f4 {[%clk 0:00:19.4]} 0-1

[Event "*** SCC Grand Prix: Titled Tuesday Blitz"]
[Site "Chess.com"]
[Date "2020.07.14"]
[Round "10"]
[White "MateSchmate"]
[Black "andrzej"]
[Result "1-0"]
[WhiteElo "2389"]
[BlackElo "2198"]
[TimeControl "180+1"]
[EndTime "11:58:25 PDT"]
[Termination "MateSchmate won on time"]

1. e4 {[%clk 0:02:53.1]} 1... c6 {[%clk 0:02:59.6]} 2. Bc4 {[%clk 0:02:49.2]}
2... d5 {[%clk 0:02:56.4]} 3. Bb3 {[%clk 0:02:50.1]} 3... e5 {[%clk 0:02:52.5]}
4. exd5 {[%clk 0:02:44.8]} 4... cxd5 {[%clk 0:02:52.2]} 5. d4 {[%clk 0:02:45.7]}
5... e4 {[%clk 0:02:43.2]} 6. c4 {[%clk 0:02:43.5]} 6... Nf6 {[%clk 0:02:37.9]}
7. Nc3 {[%clk 0:02:42.3]} 7... Bb4 {[%clk 0:02:31.4]} 8. Ne2 {[%clk 0:02:38.9]}
8... O-O {[%clk 0:02:24]} 9. O-O {[%clk 0:02:36.7]} 9... Bg4 {[%clk 0:02:19.9]}
10. Bg5 {[%clk 0:02:06.7]} 10... Bxc3 {[%clk 0:02:09]} 11. bxc3 {[%clk
0:02:00.8]} 11... h6 {[%clk 0:02:00.3]} 12. Bxf6 {[%clk 0:01:59.5]} 12... Qxf6
{[%clk 0:02:01.2]} 13. cxd5 {[%clk 0:01:59.1]} 13... Nd7 {[%clk 0:01:56.1]} 14.
Qd2 {[%clk 0:01:53.3]} 14... Rae8 {[%clk 0:01:45.9]} 15. Ng3 {[%clk 0:01:38.9]}
15... Qg6 {[%clk 0:01:35.9]} 16. Rfe1 {[%clk 0:01:29.2]} 16... f5 {[%clk
0:01:28.1]} 17. Qf4 {[%clk 0:01:21.9]} 17... Kh8 {[%clk 0:01:22]} 18. h3 {[%clk
0:01:20.8]} 18... Bh5 {[%clk 0:01:19.5]} 19. Ba4 {[%clk 0:01:12.9]} 19... Re7
{[%clk 0:00:44.2]} 20. Bxd7 {[%clk 0:01:10.8]} 20... Rxd7 {[%clk 0:00:44.3]} 21.
Qh4 {[%clk 0:01:10.1]} 21... Bf3 {[%clk 0:00:40.1]} 22. gxf3 {[%clk 0:00:59]}
22... f4 {[%clk 0:00:40.2]} 23. fxe4 {[%clk 0:00:54.5]} 23... Rdf7 {[%clk
0:00:19.7]} 24. e5 {[%clk 0:00:47.2]} 24... fxg3 {[%clk 0:00:19.2]} 25. Qxg3
{[%clk 0:00:48.1]} 25... Qc2 {[%clk 0:00:17.2]} 26. Rac1 {[%clk 0:00:42.8]}
26... Qd2 {[%clk 0:00:10.7]} 27. Qe3 {[%clk 0:00:40.3]} 27... Qxa2 {[%clk
0:00:08]} 28. e6 {[%clk 0:00:37.5]} 28... Rxf2 {[%clk 0:00:06.6]} 29. Qe4 {[%clk
0:00:36.8]} 29... Qd2 {[%clk 0:00:02.8]} 30. e7 {[%clk 0:00:33.5]} 30... Re8
{[%clk 0:00:01.4]} 31. d6 {[%clk 0:00:30.4]} 1-0

[Event "*** SCC Grand Prix: Titled Tuesday Blitz"]
[Site "Chess.com"]
[Date "2020.07.14"]
[Round "10"]
[White "Biranidun"]
[Black "amintabatabaei"]
[Result "0-1"]
[WhiteElo "2881"]
[BlackElo "3022"]
[TimeControl "180+1"]
[EndTime "11:58:27 PDT"]
[Termination "amintabatabaei won on time"]

1. e4 {[%clk 0:03:00.9]} 1... c5 {[%clk 0:02:59.8]} 2. Nf3 {[%clk 0:03:01.2]}
2... Nc6 {[%clk 0:03:00]} 3. d4 {[%clk 0:03:01.5]} 3... cxd4 {[%clk 0:03:00.9]}
4. Nxd4 {[%clk 0:03:01.7]} 4... e5 {[%clk 0:03:01.3]} 5. Nb5 {[%clk 0:03:02.1]}
5... d6 {[%clk 0:03:02]} 6. N1c3 {[%clk 0:03:01.4]} 6... a6 {[%clk 0:03:02.3]}
7. Na3 {[%clk 0:03:01.7]} 7... Be6 {[%clk 0:03:03]} 8. Nc4 {[%clk 0:03:00.1]}
8... Rb8 {[%clk 0:02:42.3]} 9. Nd5 {[%clk 0:03:00]} 9... Nf6 {[%clk 0:02:40.1]}
10. Bg5 {[%clk 0:02:58]} 10... Bxd5 {[%clk 0:02:23.4]} 11. exd5 {[%clk
0:02:58.2]} 11... Na7 {[%clk 0:02:17.7]} 12. a4 {[%clk 0:02:53.7]} 12... Be7
{[%clk 0:02:16.6]} 13. Be2 {[%clk 0:02:53.4]} 13... O-O {[%clk 0:02:16.9]} 14.
Be3 {[%clk 0:02:51.8]} 14... Nc8 {[%clk 0:02:15.9]} 15. O-O {[%clk 0:02:51]}
15... Qc7 {[%clk 0:02:12.1]} 16. a5 {[%clk 0:02:46.2]} 16... Nd7 {[%clk
0:02:12.4]} 17. b3 {[%clk 0:02:39.6]} 17... f5 {[%clk 0:02:09.7]} 18. f3 {[%clk
0:02:39.6]} 18... Bf6 {[%clk 0:02:09.1]} 19. Ra2 {[%clk 0:02:25.9]} 19... Ne7
{[%clk 0:02:08.2]} 20. Qd2 {[%clk 0:02:24.1]} 20... Ng6 {[%clk 0:02:07.2]} 21.
Qb4 {[%clk 0:02:18.8]} 21... Be7 {[%clk 0:02:04.4]} 22. Re1 {[%clk 0:02:15.4]}
22... Rbc8 {[%clk 0:02:03.7]} 23. Bf1 {[%clk 0:02:03.1]} 23... Bh4 {[%clk
0:01:45.5]} 24. g3 {[%clk 0:01:54.2]} 24... Be7 {[%clk 0:01:45.5]} 25. Bf2
{[%clk 0:01:54.5]} 25... Rf7 {[%clk 0:01:39.3]} 26. Bh3 {[%clk 0:01:45.2]} 26...
h5 {[%clk 0:01:36.7]} 27. Ne3 {[%clk 0:01:39.7]} 27... Rcf8 {[%clk 0:01:36]} 28.
Qc4 {[%clk 0:01:30.6]} 28... Qd8 {[%clk 0:01:29.5]} 29. Qb4 {[%clk 0:01:23.1]}
29... Qc7 {[%clk 0:01:28.8]} 30. Qc4 {[%clk 0:01:23.2]} 30... Qd8 {[%clk
0:01:28.6]} 31. Qb4 {[%clk 0:01:17.8]} 31... f4 {[%clk 0:01:23.1]} 32. Nd1
{[%clk 0:00:46.3]} 32... fxg3 {[%clk 0:01:20.8]} 33. hxg3 {[%clk 0:00:47.2]}
33... Rxf3 {[%clk 0:01:15.6]} 34. Qxb7 {[%clk 0:00:37.4]} 34... Nc5 {[%clk
0:01:11.6]} 35. Qb6 {[%clk 0:00:33.2]} 35... Qe8 {[%clk 0:01:10.1]} 36. b4
{[%clk 0:00:26.3]} 36... Nf4 {[%clk 0:00:54]} 37. Bf1 {[%clk 0:00:06.5]} 37...
Qg6 {[%clk 0:00:53.8]} 38. c4 {[%clk 0:00:05.3]} 38... Rxg3+ {[%clk 0:00:52]}
39. Bxg3 {[%clk 0:00:05.4]} 39... Qxg3+ {[%clk 0:00:52.9]} 40. Kh1 {[%clk
0:00:03.6]} 40... Qxe1 {[%clk 0:00:53]} 41. Rf2 {[%clk 0:00:03.3]} 41... Ne4
{[%clk 0:00:51.6]} 42. Rf3 {[%clk 0:00:02.3]} 42... Ng5 {[%clk 0:00:47.9]} 0-1

[Event "*** SCC Grand Prix: Titled Tuesday Blitz"]
[Site "Chess.com"]
[Date "2020.07.14"]
[Round "10"]
[White "Bulldog167"]
[Black "DariaVoit"]
[Result "1-0"]
[WhiteElo "2753"]
[BlackElo "2513"]
[TimeControl "180+1"]
[EndTime "11:58:27 PDT"]
[Termination "Bulldog167 won by checkmate"]

1. d4 {[%clk 0:03:00.9]} 1... Nf6 {[%clk 0:02:59.7]} 2. c4 {[%clk 0:03:01.5]}
2... e6 {[%clk 0:03:00.1]} 3. Nf3 {[%clk 0:03:01.7]} 3... b6 {[%clk 0:03:00.2]}
4. Bf4 {[%clk 0:03:01.3]} 4... Bb7 {[%clk 0:02:57.9]} 5. e3 {[%clk 0:03:01.8]}
5... Bb4+ {[%clk 0:02:45.1]} 6. Nfd2 {[%clk 0:03:02]} 6... O-O {[%clk
0:02:44.5]} 7. a3 {[%clk 0:03:01.6]} 7... Be7 {[%clk 0:02:44.4]} 8. Nc3 {[%clk
0:03:01.8]} 8... c5 {[%clk 0:02:42.4]} 9. d5 {[%clk 0:03:01.4]} 9... exd5 {[%clk
0:02:39]} 10. cxd5 {[%clk 0:03:02.3]} 10... d6 {[%clk 0:02:27.2]} 11. e4 {[%clk
0:03:01.1]} 11... Re8 {[%clk 0:02:22.5]} 12. Be2 {[%clk 0:03:01.1]} 12... Bf8
{[%clk 0:02:20.1]} 13. O-O {[%clk 0:03:01.2]} 13... Ba6 {[%clk 0:02:09.5]} 14.
Bxa6 {[%clk 0:02:53.1]} 14... Nxa6 {[%clk 0:02:10.4]} 15. Re1 {[%clk 0:02:45.7]}
15... Nc7 {[%clk 0:02:08.8]} 16. a4 {[%clk 0:02:40.9]} 16... a6 {[%clk
0:02:08.7]} 17. Nc4 {[%clk 0:02:39.4]} 17... Rb8 {[%clk 0:02:02.3]} 18. h3
{[%clk 0:02:35.7]} 18... b5 {[%clk 0:01:43.1]} 19. axb5 {[%clk 0:02:32.1]} 19...
axb5 {[%clk 0:01:44]} 20. Na5 {[%clk 0:02:32.2]} 20... Ra8 {[%clk 0:01:40.6]}
21. Nc6 {[%clk 0:02:27.5]} 21... Rxa1 {[%clk 0:01:32.6]} 22. Qxa1 {[%clk
0:02:28.4]} 22... Qa8 {[%clk 0:01:32.4]} 23. b4 {[%clk 0:02:11.2]} 23... Qxa1
{[%clk 0:01:25.6]} 24. Rxa1 {[%clk 0:02:10.2]} 24... cxb4 {[%clk 0:01:24.4]} 25.
Nxb4 {[%clk 0:02:03.4]} 25... Nxe4 {[%clk 0:01:24.6]} 26. Nxe4 {[%clk
0:01:48.2]} 26... Rxe4 {[%clk 0:01:24.2]} 27. Bd2 {[%clk 0:01:48.9]} 27... Rd4
{[%clk 0:01:20.1]} 28. Bc3 {[%clk 0:01:49]} 28... Rc4 {[%clk 0:01:20.4]} 29. Be1
{[%clk 0:01:49.3]} 29... Be7 {[%clk 0:01:11.8]} 30. Kf1 {[%clk 0:01:35]} 30...
Bf6 {[%clk 0:01:03.6]} 31. Ra7 {[%clk 0:01:34.4]} 31... g6 {[%clk 0:00:52]} 32.
Ke2 {[%clk 0:01:22.5]} 32... Kg7 {[%clk 0:00:51.4]} 33. Kd3 {[%clk 0:01:21]}
33... Nxd5 {[%clk 0:00:44.6]} 34. Nxd5 {[%clk 0:01:15.1]} 34... Rd4+ {[%clk
0:00:44.9]} 35. Ke2 {[%clk 0:01:15.5]} 35... Rxd5 {[%clk 0:00:45.3]} 36. Rb7
{[%clk 0:01:16.2]} 36... g5 {[%clk 0:00:32.3]} 37. Bb4 {[%clk 0:01:08.2]} 37...
Kg6 {[%clk 0:00:32.3]} 38. g4 {[%clk 0:01:08]} 38... Be5 {[%clk 0:00:31.2]} 39.
Bd2 {[%clk 0:01:03.9]} 39... h6 {[%clk 0:00:30.7]} 40. Be3 {[%clk 0:01:02.2]}
40... f5 {[%clk 0:00:30.6]} 41. Kf3 {[%clk 0:00:59.2]} 41... f4 {[%clk
0:00:29.2]} 42. Ba7 {[%clk 0:00:55.5]} 42... Bc3 {[%clk 0:00:27.4]} 43. Ke4
{[%clk 0:00:41.3]} 43... Re5+ {[%clk 0:00:26.9]} 44. Kd3 {[%clk 0:00:41.5]}
44... Be1 {[%clk 0:00:25.8]} 45. Bd4 {[%clk 0:00:40.7]} 45... Re6 {[%clk
0:00:15.3]} 46. Rg7# {[%clk 0:00:40]} 1-0

[Event "*** SCC Grand Prix: Titled Tuesday Blitz"]
[Site "Chess.com"]
[Date "2020.07.14"]
[Round "10"]
[White "kidagent"]
[Black "coalescenet"]
[Result "1/2-1/2"]
[WhiteElo "2225"]
[BlackElo "2332"]
[TimeControl "180+1"]
[EndTime "11:58:28 PDT"]
[Termination "Game drawn by repetition"]

1. e4 {[%clk 0:03:00.9]} 1... c6 {[%clk 0:02:59.8]} 2. d4 {[%clk 0:03:00.4]}
2... d5 {[%clk 0:03:00.7]} 3. Nd2 {[%clk 0:03:00]} 3... dxe4 {[%clk 0:03:00.5]}
4. Nxe4 {[%clk 0:03:00.6]} 4... Bf5 {[%clk 0:02:59.4]} 5. Ng3 {[%clk 0:03:00.4]}
5... Bg6 {[%clk 0:02:59.9]} 6. h4 {[%clk 0:02:58.9]} 6... h6 {[%clk 0:03:00.2]}
7. Nf3 {[%clk 0:02:58.9]} 7... Nd7 {[%clk 0:03:00.5]} 8. h5 {[%clk 0:02:56.7]}
8... Bh7 {[%clk 0:03:00.7]} 9. Bd3 {[%clk 0:02:57]} 9... Bxd3 {[%clk 0:03:00]}
10. Qxd3 {[%clk 0:02:57.9]} 10... e6 {[%clk 0:03:00.1]} 11. Bd2 {[%clk
0:02:57.5]} 11... Bd6 {[%clk 0:03:00.1]} 12. Ne4 {[%clk 0:02:56.5]} 12... Bc7
{[%clk 0:03:00.1]} 13. O-O-O {[%clk 0:02:55.2]} 13... Ngf6 {[%clk 0:03:00.5]}
14. Kb1 {[%clk 0:02:51.2]} 14... Nxe4 {[%clk 0:03:00.1]} 15. Qxe4 {[%clk
0:02:51.2]} 15... Nf6 {[%clk 0:03:00.8]} 16. Qe2 {[%clk 0:02:51.6]} 16... Qd5
{[%clk 0:03:00.6]} 17. c4 {[%clk 0:02:47.6]} 17... Qf5+ {[%clk 0:02:49.2]} 18.
Ka1 {[%clk 0:02:44.3]} 18... Nxh5 {[%clk 0:02:49.2]} 19. Nh4 {[%clk 0:02:14]}
19... Nf4 {[%clk 0:02:46.9]} 20. Nxf5 {[%clk 0:01:19.8]} 20... Nxe2 {[%clk
0:02:43.3]} 21. Nxg7+ {[%clk 0:01:20.3]} 21... Kf8 {[%clk 0:02:33.3]} 22. Bxh6
{[%clk 0:01:19.9]} 22... Rxh6 {[%clk 0:02:32.4]} 23. Rxh6 {[%clk 0:01:18.2]}
23... Kxg7 {[%clk 0:02:32.4]} 24. Rh4 {[%clk 0:01:09.5]} 24... Nf4 {[%clk
0:02:24.9]} 25. g3 {[%clk 0:01:05.7]} 25... Ng6 {[%clk 0:02:24.2]} 26. Rhh1
{[%clk 0:01:01.5]} 26... Rd8 {[%clk 0:02:21.9]} 27. Kb1 {[%clk 0:00:55]} 27...
Bb6 {[%clk 0:02:18.7]} 28. Kc2 {[%clk 0:00:52.4]} 28... Bxd4 {[%clk 0:02:16.1]}
29. f3 {[%clk 0:00:49.1]} 29... e5 {[%clk 0:02:07.1]} 30. b3 {[%clk 0:00:46.9]}
30... c5 {[%clk 0:02:00.9]} 31. Rh2 {[%clk 0:00:46.5]} 31... Ne7 {[%clk
0:01:58.5]} 32. Rdh1 {[%clk 0:00:44.2]} 32... Nf5 {[%clk 0:01:57.5]} 33. g4
{[%clk 0:00:44.3]} 33... Ne3+ {[%clk 0:01:54.9]} 34. Kd3 {[%clk 0:00:44.3]}
34... Kf6 {[%clk 0:01:47.3]} 35. Ke4 {[%clk 0:00:42.5]} 35... Ke7 {[%clk
0:01:39.6]} 36. Re2 {[%clk 0:00:36.3]} 36... Ke6 {[%clk 0:01:31.4]} 37. Rh6+
{[%clk 0:00:33.5]} 37... f6 {[%clk 0:01:29.5]} 38. g5 {[%clk 0:00:31.8]} 38...
Rf8 {[%clk 0:01:26.7]} 39. Rxe3 {[%clk 0:00:29.4]} 39... Bxe3 {[%clk 0:01:25.5]}
40. Kxe3 {[%clk 0:00:30.3]} 40... Kf5 {[%clk 0:01:22.8]} 41. gxf6 {[%clk
0:00:28.1]} 41... Rxf6 {[%clk 0:01:22.2]} 42. Rh7 {[%clk 0:00:28.2]} 42... Rb6
{[%clk 0:01:20.4]} 43. Rc7 {[%clk 0:00:27.4]} 43... Ra6 {[%clk 0:01:18]} 44.
Rxb7 {[%clk 0:00:17.8]} 44... Rxa2 {[%clk 0:01:17.5]} 45. Rb5 {[%clk 0:00:17.6]}
45... Ra3 {[%clk 0:01:16.1]} 46. Kd3 {[%clk 0:00:16]} 46... a6 {[%clk
0:01:15.8]} 47. Rb8 {[%clk 0:00:14.2]} 47... a5 {[%clk 0:01:13.1]} 48. Rf8+
{[%clk 0:00:13.5]} 48... Ke6 {[%clk 0:01:12.5]} 49. Kc2 {[%clk 0:00:13.2]} 49...
a4 {[%clk 0:01:10.7]} 50. bxa4 {[%clk 0:00:12.2]} 50... Rxa4 {[%clk 0:01:11.3]}
51. Kb3 {[%clk 0:00:11.3]} 51... Rb4+ {[%clk 0:01:11.1]} 52. Kc3 {[%clk
0:00:10.7]} 52... Rb1 {[%clk 0:01:10.7]} 53. Rc8 {[%clk 0:00:09.7]} 53... Kd6
{[%clk 0:01:10.4]} 54. Rd8+ {[%clk 0:00:09.7]} 54... Kc7 {[%clk 0:01:08.5]} 55.
Re8 {[%clk 0:00:09.9]} 55... Kd6 {[%clk 0:01:08.4]} 56. Rd8+ {[%clk 0:00:09.3]}
56... Ke7 {[%clk 0:01:08.5]} 57. Rc8 {[%clk 0:00:09.3]} 57... Kd6 {[%clk
0:01:04.2]} 58. Rd8+ {[%clk 0:00:09.3]} 1/2-1/2

[Event "*** SCC Grand Prix: Titled Tuesday Blitz"]
[Site "Chess.com"]
[Date "2020.07.14"]
[Round "10"]
[White "Gusarov91"]
[Black "JoakimVonAnd"]
[Result "1-0"]
[WhiteElo "2625"]
[BlackElo "2447"]
[TimeControl "180+1"]
[EndTime "11:58:29 PDT"]
[Termination "Gusarov91 won by resignation"]

1. d4 {[%clk 0:03:00.9]} 1... Nf6 {[%clk 0:02:57.4]} 2. Nf3 {[%clk 0:03:00.5]}
2... e6 {[%clk 0:02:57.9]} 3. c4 {[%clk 0:03:00.3]} 3... b6 {[%clk 0:02:57.4]}
4. g3 {[%clk 0:03:00.1]} 4... Ba6 {[%clk 0:02:57.8]} 5. Qa4 {[%clk 0:02:54.9]}
5... Bb7 {[%clk 0:02:52.1]} 6. Bg2 {[%clk 0:02:54.1]} 6... c5 {[%clk 0:02:52.3]}
7. dxc5 {[%clk 0:02:53.6]} 7... Bxc5 {[%clk 0:02:52]} 8. O-O {[%clk 0:02:53.6]}
8... O-O {[%clk 0:02:52.2]} 9. Nc3 {[%clk 0:02:54.2]} 9... Nc6 {[%clk
0:02:46.2]} 10. a3 {[%clk 0:02:50]} 10... a5 {[%clk 0:02:43.2]} 11. Bf4 {[%clk
0:02:46.8]} 11... h6 {[%clk 0:02:41.6]} 12. Rad1 {[%clk 0:02:45.6]} 12... Qe7
{[%clk 0:02:36.4]} 13. Nb5 {[%clk 0:02:44.1]} 13... e5 {[%clk 0:02:34.8]} 14.
Bc1 {[%clk 0:02:41.6]} 14... Rad8 {[%clk 0:02:28.1]} 15. Nh4 {[%clk 0:02:28.2]}
15... d6 {[%clk 0:02:10.5]} 16. Nf5 {[%clk 0:02:25.6]} 16... Qe6 {[%clk
0:02:08.1]} 17. e4 {[%clk 0:02:22.4]} 17... Ne7 {[%clk 0:01:55.5]} 18. Nxe7+
{[%clk 0:01:56.6]} 18... Qxe7 {[%clk 0:01:56.4]} 19. b4 {[%clk 0:01:56.8]} 19...
axb4 {[%clk 0:01:46.8]} 20. axb4 {[%clk 0:01:56.1]} 20... Bd4 {[%clk 0:01:45.7]}
21. Nxd4 {[%clk 0:01:55.6]} 21... exd4 {[%clk 0:01:46.6]} 22. f3 {[%clk
0:01:46.2]} 22... Qe5 {[%clk 0:01:21.2]} 23. Bf4 {[%clk 0:01:44.3]} 23... Qe6
{[%clk 0:01:12.7]} 24. Rxd4 {[%clk 0:01:43.3]} 24... g5 {[%clk 0:01:09.5]} 25.
Bc1 {[%clk 0:01:26]} 25... Rc8 {[%clk 0:01:08.8]} 26. Qb5 {[%clk 0:01:15.6]}
26... Nd7 {[%clk 0:01:02.7]} 27. h4 {[%clk 0:01:01.3]} 27... gxh4 {[%clk
0:00:59.7]} 28. gxh4 {[%clk 0:00:54.5]} 28... Bc6 {[%clk 0:00:55.5]} 29. Qh5
{[%clk 0:00:54]} 29... Kh7 {[%clk 0:00:48.1]} 30. Bf4 {[%clk 0:00:46.5]} 30...
Ne5 {[%clk 0:00:45.5]} 31. Kh2 {[%clk 0:00:41]} 31... Bd7 {[%clk 0:00:39.1]} 32.
Rfd1 {[%clk 0:00:33.2]} 32... Rg8 {[%clk 0:00:38.5]} 33. Bxe5 {[%clk 0:00:20.3]}
33... Rxg2+ {[%clk 0:00:34.3]} 34. Kxg2 {[%clk 0:00:20.7]} 34... Qh3+ {[%clk
0:00:31.2]} 35. Kf2 {[%clk 0:00:21.1]} 35... dxe5 {[%clk 0:00:31.4]} 36. Rxd7
{[%clk 0:00:21.1]} 36... Qh2+ {[%clk 0:00:30.1]} 37. Ke3 {[%clk 0:00:21.4]}
37... Qf4+ {[%clk 0:00:25.8]} 38. Ke2 {[%clk 0:00:21.8]} 38... Qh2+ {[%clk
0:00:25.5]} 39. Kd3 {[%clk 0:00:21.9]} 39... Qa2 {[%clk 0:00:23.3]} 40. Qxf7+
{[%clk 0:00:20.4]} 1-0